{"text_format":"2","workbook":"xlsx","n_sheets":1,"sheets":["Informe 8.1"],"not_rendered":{"charts":0,"images":0,"macros":0,"external_links":0,"defined_names":0,"comments":0,"pivot_tables":0},"unopened":[],"bounds":{"document_bytes":16777216,"sheet_cells":100000,"run_cost":"one","rows_first":2000,"rows_last":500,"rows_between":2000,"halvings":0,"cell_chars":16384,"cell_head_chars":4096},"cells_cut":0,"cells_raw":0,"read":"whole","date_system":"1900"}

{"sheet":"Informe 8.1","index":0,"n_rows":19,"n_cols":29,"rows_kept":19,"cut":false,"hidden":false,"merged":[[2,0,2,10]]}
["TVS WIRELESS S.A.C"]
[]
["Informe Regulatorio N° 8.1: ATRIBUCIÓN DE GASTOS A LAS LÍNEAS DE NEGOCIO EN BASE A GRUPOS DE COSTO AGREGADOS"]
[]
["Periodo de reporte: Enero a Diciembre 2019"]
[]
["Empresado en miles de soles","1. Acceso Instalación Telefonía Fija de Abonado Urbano","2. Prestación del servicio de voz Telefonía Fija local desde Abonado Urbano","3. Prestación del servicio de voz Telefonía Fija LD desde Abonado Urbano","4. Prestación del servicio de voz Telefonía Fija Local desde TUP Urbano","5. Prestación del servicio de voz Telefonía Fija LD desde TUP Urbano","6. Acceso Instalación Telefonía Fija de Abonado Rural","7. Prestación del servicio de voz Telefonía Fija Local desde Abonado Rural","8. Prestación del servicio de voz Telefonía Fija LD desde Abonado Rural","9. Prestación del servicio de voz Telefonía Fija Local desde TUP Rural","10. Prestación del servicio de voz Telefonía Fija LD desde TUP Rural","11. Instalación Televisión de Paga","12. Prestación de servicios Televisión de Paga","13. Instalación Internet Fijo","14. Prestación de servicios Internet Fijo","15. Prestación de servicio voz móvil por Telefonía Móvil","16. Mensajes de Texto Telefonía Móvil","17. Roaming Internacional por Telefonía Móvil","18. Prestación de Internet Móvil","19. Servicios Suplementarios","20. Servicios de valor añadido (No incluye Internet)","21. Suministro de Equipos","22. Instalación para Alquiler de circuitos y Transmisión de Datos para clientes privados y otros operadores","23. Alquiler de Circuitos y Transmisión de Datos a clientes privados y otros operadores","24. Provisión de acceso a EEDE","25. Interconexión","26. Otros","27. Venta de Capacidad","Total"]
["Gastos de personal permanente",0,0,0,0,0,0,0,0,0,0,0,0,0,0,0,0,0,0,0,0,0,0,0,0,0,0,0,{"$f":"+SUM(B8:AB8)","v":0}]
["Gastos de personal temporal",0,0,0,0,0,0,0,0,0,0,0,0,0,0,0,0,0,0,0,0,0,0,0,0,0,0,0,{"$f":"+SUM(B9:AB9)","v":0}]
["Gastos generales y administrativos  ",0,0,0,0,0,0,0,0,0,0,0,0,0,2619,0,0,0,11659,0,0,0,0,0,0,0,0,560668,574946]
[" Depreciación  ",0,0,0,0,0,0,0,0,0,0,0,0,0,23,0,0,0,127,0,0,0,0,0,0,0,0,0,150]
[" Amortización  ",0,0,0,0,0,0,0,0,0,0,0,0,0,0,0,0,0,0,0,0,0,0,0,0,0,0,7386,7386]
[" Existencias  ",0,0,0,0,0,0,0,0,0,0,0,0,0,0,0,0,0,0,0,0,-13,0,0,0,0,0,0,-13]
["Capitalización de gastos por construcción de planta o trabajo para el inmovilizado",0,0,0,0,0,0,0,0,0,0,0,0,0,0,0,0,0,0,0,0,0,0,0,0,0,0,0,0]
["Honorarios por transferencia de capacidad técnica y gestión de accionistas",0,0,0,0,0,0,0,0,0,0,0,0,0,0,0,0,0,0,0,0,0,0,0,0,0,0,0,0]
["Servicios de gestión administrativa y gastos compartidos",0,0,0,0,0,0,0,0,0,0,0,0,0,0,0,0,0,0,0,0,0,0,0,0,0,0,0,0]
["Provision por desvalorización de activos",0,0,0,0,0,0,0,0,0,0,0,0,0,0,0,0,0,0,0,0,0,0,0,0,0,0,0,0]
[" Otros gastos operativos  ",0,0,0,0,0,0,0,0,0,0,0,0,0,0,0,0,0,0,0,0,0,0,0,0,0,0,2,2]
["TOTAL",{"$f":"SUM(B8:B18)","v":0},{"$f":"SUM(C8:C18)","v":0},0,0,0,0,0,0,0,0,0,0,0,{"$f":"SUM(O8:O18)","v":2642},{"$f":"SUM(P8:P18)","v":0},0,0,11786,0,0,-13,0,0,0,0,0,568056,582471]